[Event "Romanian GP Final KO 2023"]
[Site "Alba Iulia"]
[Date "2023.12.05"]
[Round "2.1"]
[White "Serban, Cristian-Stefan"]
[Black "Toma, Radu-Cristian"]
[Result "1-0"]
[ECO "A35"]
[WhiteElo "2332"]
[BlackElo "2387"]
[Annotator "RC"]
[PlyCount "79"]
[EventDate "2023.12.04"]
[EventType "k.o."]
[EventCountry "ROU"]
[SourceTitle "playchess.com"]
[Source "ChessBase"]
[SourceQuality "1"]
[TimeControl "900+5"]

1. c4 {[%emt 0:00:02]} c5 {[%emt 0:00:18]} 2. Nc3 {[%emt 0:00:04]} g6 {[%emt 0:00:09]} 3. Nf3 {[%emt 0:00:21]} Bg7 {[%emt 0:00:16]} 4. d4 {[%emt 0:00:13]} cxd4 {[%emt 0:00:12]} 5. Nxd4 {[%emt 0:00:03]} Nc6 {[%emt 0:00:27]} 6. Nxc6 {[%emt 0:00:06]} dxc6 {[%emt 0:00:17]} 7. Qxd8+ {[%emt 0:00:05]} Kxd8 {[%emt 0:00:02]} 8. Bf4 {[%emt 0:01:04]} e5 {[%emt 0:00:04]} 9. O-O-O+ {[%emt 0:00:34]} Kc7 {[%emt 0:00:26]} 10. Be3 {[%emt 0:00:03]} Be6 {[%emt 0:00:46]} 11. b3 {[%emt 0:00:08]} Nf6 {[%emt 0:00:18]} 12. h3 {[%emt 0:00:32]} Rhd8 {[%emt 0:00:46]} 13. Rxd8 {[%emt 0:00:03]} Rxd8 {[%emt 0:01:48]} 14. Bxa7 {[%emt 0:01:15]} Bh6+ {[%emt 0:00:31]} 15. Be3 {[%emt 0:02:39]} Bxe3+ {[%emt 0:00:05]} 16. fxe3 {[%emt 0:00:02]} b5 {[%emt 0:03:02]} 17. cxb5 {[%emt 0:00:18]} cxb5 {[%emt 0:00:02]} 18. Nxb5+ {[%emt 0:00:03]} Kb6 {[%emt 0:00:01]} 19. Nc3 {[%emt 0:00:14]} Nd5 {[%emt 0:00:03]} 20. Nxd5+ {[%emt 0:01:00]} Bxd5 {[%emt 0:00:09]} 21. Rg1 {[%emt 0:00:17]} Rc8+ {[%emt 0:01:44]} 22. Kd1 {[%emt 0:02:40]} Ra8 {[%emt 0:00:16]} 23. Ke1 {[%emt 0:00:29]} Rxa2 {[%emt 0:00:10]} 24. g4 {[%emt 0:00:23]} g5 {[%emt 0:00:40]} 25. Kf2 {[%emt 0:00:11]} Ra1 {[%emt 0:00:49]} 26. Rg3 {[%emt 0:00:31]} Bxb3 {[%emt 0:00:23]} 27. Rf3 {[%emt 0:00:05]} Be6 {[%emt 0:00:31]} 28. Rf6 {[%emt 0:00:15]} h5 {[%emt 0:00:50]} 29. gxh5 {[%emt 0:00:06]} Ra4 {[%emt 0:00:02]} 30. Bg2 {[%emt 0:01:43]} Kc7 {[%emt 0:00:41]} 31. e4 {[%emt 0:00:25]} Kd6 {[%emt 0:00:12]} 32. Rh6 {[%emt 0:00:28]} Ra8 {[%emt 0:00:20]} 33. Kg3 {[%emt 0:00:26]} Ke7 {[%emt 0:00:07]} 34. Bf3 {[%emt 0:00:04]} Ra1 {[%emt 0:00:16]} 35. Rh8 {[%emt 0:00:07]} f5 {[%emt 0:00:27]} 36. exf5 {[%emt 0:00:02]} Bxf5 {[%emt 0:00:01]} 37. e4 {[%emt 0:00:05]} Be6 {[%emt 0:00:09]} 38. h6 {[%emt 0:00:17]} g4 {[%emt 0:00:28]} 39. hxg4 {[%emt 0:00:57]} Ra8 {[%emt 0:00:25]} 40. Rxa8 {[%emt 0:00:00]} 1-0

[Event "Romanian GP Final KO 2023"]
[Site "Alba Iulia"]
[Date "2023.12.05"]
[Round "2.1"]
[White "Ciolacu, Alessia-Mihaela"]
[Black "Lupulescu, Constantin"]
[Result "0-1"]
[ECO "E01"]
[WhiteElo "2175"]
[BlackElo "2581"]
[Annotator "TA"]
[PlyCount "75"]
[EventDate "2023.12.04"]
[EventType "k.o."]
[EventCountry "ROU"]
[SourceTitle "playchess.com"]
[Source "ChessBase"]
[SourceQuality "1"]
[TimeControl "900+5"]

{[%evp 9,75,0,18,6,15,10,17,8,17,0,4,19,16,19,14,0,5,-23,-20,-20,-29,-59,-54,-51,-48,-55,-56,-81,-82,-83,-60,-141,-131,-130,-109,-100,-86,-95,-69,-154,-146,-160,-160,-152,-142,-151,-155,-256,-269,-398,-391,-367,-343,-519,-515,-621,-622,-658,-654,-889,-779,-929,-898,-875,-868,-934,-908,-29976]} 1. d4 {[%emt 0:00:04]} Nf6 {[%emt 0:00:02]} 2. c4 {[%emt 0:00:02]} e6 {[%emt 0:00:02]} 3. Nf3 {[%emt 0:00:10]} d5 {[%emt 0:00:04]} 4. g3 {[%emt 0:00:05]} Bb4+ {[%emt 0:00:03]} 5. Bd2 {[%emt 0:00:04]} Bd6 {[%emt 0:00:02]} 6. Nc3 {[%emt 0:00:42] E01: Catalan: Early deviations.} O-O {[%emt 0:00:55]} 7. Bg5 {[%emt 0:01:23]} Be7 $1 {[%emt 0:00:16][%cal Bd6e7,Be7f6,Bf6e5][%mdl 4] now scores much better than the old 7...c6.} 8. Bg2 {[%emt 0:00:13] The position is equal.} Nbd7 {[%emt 0:01:59]} 9. O-O {[%emt 0:05:15]} dxc4 {[%emt 0:01:03]} 10. e4 {[%emt 0:00:24]} h6 {[%emt 0:01:14] [#]} 11. Bxf6 $146 {[%emt 0:00:23]} ({Predecessor:} 11. Be3 Rb8 12. d5 Nb6 13. Ne5 exd5 14. exd5 Bb4 15. Bxb6 axb6 16. Nxc4 Bxc3 17. bxc3 {1-0 Ivanov,P (2271)-Lumiste,R (2092) EST-ch U20 Tallinn 2018 (8)}) 11... Bxf6 {[%emt 0:00:03]} 12. Qe2 {[%emt 0:00:22]} e5 {[%emt 0:03:10]} 13. dxe5 {[%emt 0:00:40]} Nxe5 {[%emt 0:00:03]} 14. Nxe5 {[%emt 0:00:08]} Bxe5 {[%emt 0:00:01]} 15. Rad1 {[%emt 0:00:28] Against Qd3} Qe7 {[%emt 0:00:49]} 16. Qxc4 {[%emt 0:00:33]} c6 $1 {[%emt 0:00:10] Prevents Nd5.} 17. Qe2 {[%emt 0:03:14]} Be6 {[%emt 0:01:30]} 18. Rd2 {[%emt 0:00:41]} Qb4 {[%emt 0:00:52][%cal Oe6c4] ...Bc4! is the strong threat.} 19. Qe3 {[%emt 0:00:22]} Qb6 {[%emt 0:00:58] Black is more active.} 20. Rfd1 {[%emt 0:00:57]} ({White should play} 20. Qxb6 $15 axb6 21. f4 Bxc3 22. bxc3) 20... Qxe3 $17 {[%emt 0:00:05]} 21. fxe3 {[%emt 0:00:01]} Rfe8 {[%emt 0:00:35]} 22. Kf2 {[%emt 0:00:05]} Kf8 {[%emt 0:00:12]} 23. Bf3 {[%emt 0:00:17]} Ke7 {[%emt 0:00:07]} 24. Ke2 {[%emt 0:00:02]} (24. Ne2 $15) 24... Red8 {[%emt 0:00:44]} 25. a3 {[%emt 0:00:18]} Rxd2+ {[%emt 0:01:15]} 26. Rxd2 {[%emt 0:00:02]} h5 {[%emt 0:00:02][%cal Bh6h5,Bh5h4][%mdl 32]} 27. Kf2 {[%emt 0:00:15]} h4 {[%emt 0:00:06]} 28. g4 {[%emt 0:00:08]} (28. gxh4 $17 Rh8 29. h5) 28... Bxh2 $19 {[%emt 0:00:02]} 29. Kg2 {[%emt 0:00:02]} (29. Ne2 {was necessary.}) 29... Be5 {[%emt 0:00:05]} 30. Ne2 {[%emt 0:00:05]} Rd8 {[%emt 0:00:15]} 31. Rc2 {[%emt 0:00:05]} (31. Rxd8 $142 Kxd8 32. Nd4) 31... Bb3 {[%emt 0:00:10] This pair of bishops is nice. Black is clearly winning.} 32. Rc1 {[%emt 0:00:09]} Rd2 {[%emt 0:00:10]} 33. Kh3 {[%emt 0:00:03]} g5 {[%emt 0:00:02]} 34. Rc5 {[%emt 0:00:05]} f6 {[%emt 0:00:30] [#] aiming for ...Bd1.} 35. Kg2 {[%emt 0:00:03]} Rxb2 {[%emt 0:00:04]} 36. Rc1 {[%emt 0:00:06]} Kd6 {[%emt 0:00:06]} 37. Kf2 {[%emt 0:00:05]} c5 {[%emt 0:00:01]} 38. Ra1 {[%emt 0:00:14] Weighted Error Value: White=0.47/Black=0.10 (very precise)} 0-1

[Event "Romanian GP Final KO 2023"]
[Site "Alba Iulia"]
[Date "2023.12.05"]
[Round "2.1"]
[White "Obada, Ema"]
[Black "Secheres, Adrian-Simion"]
[Result "1-0"]
[ECO "B08"]
[WhiteElo "2035"]
[BlackElo "2381"]
[Annotator "RC"]
[PlyCount "89"]
[EventDate "2023.12.04"]
[EventType "k.o."]
[EventCountry "ROU"]
[SourceTitle "playchess.com"]
[Source "ChessBase"]
[SourceQuality "1"]
[TimeControl "900+5"]

1. e4 {[%emt 0:00:02]} Nc6 {[%emt 0:00:04]} 2. d4 {[%emt 0:00:57]} d6 {[%emt 0:00:02]} 3. Nf3 {[%emt 0:00:09]} Nf6 {[%emt 0:00:03]} 4. Nc3 {[%emt 0:00:03]} g6 {[%emt 0:00:06]} 5. Be3 {[%emt 0:00:25]} Bg7 {[%emt 0:00:06]} 6. h3 {[%emt 0:00:13]} O-O {[%emt 0:00:03]} 7. Qd2 {[%emt 0:00:17]} a6 {[%emt 0:00:03]} 8. a4 {[%emt 0:00:21]} e5 {[%emt 0:01:02]} 9. d5 {[%emt 0:02:04]} Ne7 {[%emt 0:02:03]} 10. Bd3 {[%emt 0:00:25]} c6 {[%emt 0:01:53]} 11. dxc6 {[%emt 0:00:10]} bxc6 {[%emt 0:00:03]} 12. O-O {[%emt 0:02:36]} d5 {[%emt 0:03:08]} 13. Bc5 {[%emt 0:03:03]} Qc7 {[%emt 0:01:16]} 14. a5 {[%emt 0:00:45]} Re8 {[%emt 0:00:35]} 15. Rfe1 {[%emt 0:00:23]} d4 {[%emt 0:00:42]} 16. Na4 {[%emt 0:00:18]} Nd7 {[%emt 0:00:23]} 17. b4 {[%emt 0:00:40]} Nf8 {[%emt 0:00:51]} 18. Nb6 {[%emt 0:00:47]} Rb8 {[%emt 0:00:02]} 19. Nc4 {[%emt 0:00:06]} f6 {[%emt 0:01:36]} 20. Bd6 {[%emt 0:00:27]} Qb7 {[%emt 0:00:01]} 21. Bxb8 {[%emt 0:00:07]} Qxb8 {[%emt 0:00:01]} 22. Nb6 {[%emt 0:00:25]} Bb7 {[%emt 0:00:51]} 23. Bc4+ {[%emt 0:00:14]} Kh8 {[%emt 0:00:01]} 24. c3 {[%emt 0:00:35]} Rd8 {[%emt 0:00:05]} 25. cxd4 {[%emt 0:00:12]} exd4 {[%emt 0:00:01]} 26. Qd3 {[%emt 0:00:08]} g5 {[%emt 0:00:38]} 27. e5 {[%emt 0:00:52]} Nfg6 {[%emt 0:00:30]} 28. exf6 {[%emt 0:00:09]} Bxf6 {[%emt 0:00:01]} 29. Bxa6 {[%emt 0:00:19]} Nf4 {[%emt 0:00:05]} 30. Qc4 {[%emt 0:00:05]} d3 {[%emt 0:00:14]} 31. Rad1 {[%emt 0:00:09]} Bxa6 {[%emt 0:00:27]} 32. Qxa6 {[%emt 0:00:01]} Qd6 {[%emt 0:00:11]} 33. Qc4 {[%emt 0:00:07]} Neg6 {[%emt 0:00:18]} 34. a6 {[%emt 0:00:08]} Qc7 {[%emt 0:00:04]} 35. Na4 {[%emt 0:00:07]} Ne2+ {[%emt 0:00:06]} 36. Kf1 {[%emt 0:00:06]} Ngf4 {[%emt 0:00:03]} 37. Nc5 {[%emt 0:00:05]} Nc3 {[%emt 0:00:16]} 38. Rd2 {[%emt 0:00:07]} Ncd5 {[%emt 0:00:02]} 39. Ne6 {[%emt 0:00:02]} Nxe6 {[%emt 0:00:02]} 40. Rxe6 {[%emt 0:00:01]} g4 {[%emt 0:00:06]} 41. hxg4 {[%emt 0:00:02]} Qf7 {[%emt 0:00:11]} 42. Rxc6 {[%emt 0:00:04]} Qe7 {[%emt 0:00:14]} 43. Rxd3 {[%emt 0:00:06]} Nxb4 {[%emt 0:00:00]} 44. Rxd8+ {[%emt 0:00:03]} Qxd8 {[%emt 0:00:01]} 45. Rc8 {[%emt 0:00:01]} 1-0

[Event "Romanian GP Final KO 2023"]
[Site "Alba Iulia"]
[Date "2023.12.05"]
[Round "2.2"]
[White "Deac, Bogdan-Daniel"]
[Black "Petkov, Momchil"]
[Result "1-0"]
[ECO "E08"]
[WhiteElo "2690"]
[BlackElo "2499"]
[Annotator "TA"]
[PlyCount "177"]
[EventDate "2023.12.04"]
[EventType "k.o."]
[EventCountry "ROU"]
[SourceTitle "playchess.com"]
[Source "ChessBase"]
[SourceQuality "1"]
[TimeControl "900+5"]

{[%evp 12,177,22,16,37,18,33,28,30,29,25,24,26,18,77,54,73,62,122,131,137,126,203,207,185,166,155,165,163,159,162,106,163,154,166,159,165,161,163,160,167,158,161,169,171,155,189,163,158,133,133,126,128,106,154,158,145,108,164,111,153,139,176,161,171,168,180,185,172,91,91,62,62,56,56,56,91,91,91,91,91,91,91,91,91,91,91,91,91,91,91,91,91,91,91,91,91,91,99,91,112,91,91,91,91,91,91,91,91,91,91,91,91,91,91,91,91,91,91,91,91,91,91,91,94,76,84,0,86,81,98,91,91,0,80,23,97,38,43,38,38,38,43,43,43,43,43,43,43,20,29,11,13,10,21,8,43,43,43,25,25,12,43,10,29971,29972,29966,9708]} 1. Nf3 {[%emt 0:00:02]} Nf6 {[%emt 0:00:02]} 2. c4 {[%emt 0:00:05]} e6 {[%emt 0:00:02]} 3. g3 {[%emt 0:00:01]} d5 {[%emt 0:00:01]} 4. Bg2 {[%emt 0:00:01]} Be7 {[%emt 0:00:02]} 5. O-O {[%emt 0:00:03]} O-O {[%emt 0:00:03]} 6. d4 {[%emt 0:00:02]} Nbd7 {[%emt 0:00:06]} 7. Qc2 {[%emt 0:00:01]} h6 {[%emt 0:00:02] E08: Closed Catalan: Main Line: 7 Qc2.} 8. Rd1 {[%emt 0:00:22]} c6 {[%emt 0:00:06]} 9. b3 {[%emt 0:00:02]} a5 {[%emt 0:00:24] White has an edge.} 10. Nbd2 {[%emt 0:00:44][%cal Bb1d2,Bd2f1,Bf1e3][%mdl 32]} b6 {[%emt 0:01:44]} 11. e4 {[%emt 0:00:11]} Bb7 {[%emt 0:00:18] [#]} 12. e5 $146 {[%emt 0:00:19]} ({Predecessor:} 12. Bb2 Qb8 13. e5 Ne8 14. cxd5 cxd5 15. Rdc1 Ba6 16. Bf1 Bxf1 17. Nxf1 Ra7 18. Ne3 {½-½ Groth,K (2389)-Rogos St,J (2380) EU-ch69 sf07 email 2012}) 12... Nh7 {[%emt 0:00:02]} (12... Ne8 $1 $11) 13. Nf1 {[%emt 0:00:12]} c5 {[%emt 0:01:05][%cal Oa5a4]} 14. cxd5 {[%emt 0:06:44]} exd5 {[%emt 0:00:15]} (14... Bxd5 $14 15. Qe2 (15. Ne3 Bxf3 16. Bxf3 cxd4 $14) 15... Qc7) 15. Ne3 {[%emt 0:00:16]} Rc8 {[%emt 0:03:39]} 16. Qe2 {[%emt 0:00:40] White is more active.} cxd4 {[%emt 0:00:49]} (16... Re8 $16 {was necessary.}) 17. Nxd4 $18 {[%emt 0:04:11][%cal Bf3d4,Bd4f5,Bf5e7][%mdl 32]} Nxe5 {[%emt 0:01:15] [#]} 18. Nxd5 $1 {[%emt 0:01:32][%mdl 576] Discovered Attack} Bxd5 {[%emt 0:00:22] [#]} 19. Nf5 $1 {[%emt 0:00:04]} ({Not} 19. Qxe5 Bxg2 20. Kxg2 Bf6 $17) 19... Bf6 {[%emt 0:02:25][%cal Od8d7]} (19... Rxc1 $2 20. Raxc1 Bf6 21. Bxd5 $18) 20. Rxd5 {[%emt 0:00:54]} Qe8 {[%emt 0:00:21] [#]} 21. Bb2 {[%emt 0:00:15]} (21. Nd6 $1 $18 {[%cal Rd6e8]} Nf3+ {[%mdl 64] Discovered Attack} 22. Bxf3 Qxe2 23. Bxe2 Bxa1 24. Nxc8 Rxc8 25. Be3) 21... Nf3+ {[%emt 0:02:03]} 22. Bxf3 {[%emt 0:00:02] This pair of bishops is nice.} Qxe2 {[%emt 0:00:01]} 23. Bxe2 {[%emt 0:00:01]} Bxb2 {[%emt 0:00:01] Black is weak on the light squares} 24. Ne7+ {[%emt 0:00:02]} Kh8 {[%emt 0:00:01] aiming for ...Rce8.} 25. Nxc8 {[%emt 0:00:02]} Bxa1 {[%emt 0:00:01]} 26. Nxb6 {[%emt 0:00:02]} Bc3 {[%emt 0:00:18]} 27. Nc4 {[%emt 0:00:14]} Nf6 {[%emt 0:00:01]} 28. Rb5 {[%emt 0:00:10]} Ra8 {[%emt 0:01:00]} 29. Bf3 {[%emt 0:00:07]} Ra6 {[%emt 0:00:05]} 30. a3 {[%emt 0:00:06]} g6 {[%emt 0:00:29]} 31. h4 {[%emt 0:00:05]} Kg7 {[%emt 0:00:02]} 32. Kg2 {[%emt 0:00:06]} Ne8 {[%emt 0:00:04]} (32... h5 $142 33. Rb7 Bd4) 33. Rc5 $16 {[%emt 0:00:03]} Ra7 {[%emt 0:00:33]} 34. Kf1 {[%emt 0:00:07]} Nf6 {[%emt 0:00:01]} (34... Rc7 $16 {is a better defense.} 35. Rc6 Rxc6 36. Bxc6 Nc7) 35. Rb5 {[%emt 0:00:04]} (35. Ne5 $18 Bd4 36. Rb5) 35... Ne8 {[%emt 0:00:08]} 36. h5 {[%emt 0:00:02]} gxh5 {[%emt 0:00:05]} 37. Bxh5 {[%emt 0:00:08]} Nc7 {[%emt 0:00:03]} 38. Rf5 {[%emt 0:00:05]} Ne6 {[%emt 0:00:01]} 39. Nd6 {[%emt 0:00:05]} Nd4 {[%emt 0:00:14]} 40. Rxf7+ {[%emt 0:00:06]} ({Only move:} 40. Rc5 $18 Bb2 41. Nc4) 40... Rxf7 {[%emt 0:00:01]} 41. Bxf7 $18 {[%emt 0:00:01][%mdl 4096] Endgame KBN-KBN} Bb2 {[%emt 0:00:06]} 42. a4 {[%emt 0:00:07]} Ba3 {[%emt 0:00:03]} 43. Nc4 {[%emt 0:00:01][%csl LRa3,LRa5]} Bb4 {[%emt 0:00:08]} 44. Bd5 {[%emt 0:00:02]} Nxb3 {[%emt 0:00:02]} 45. Kg2 {[%emt 0:00:12]} Nc5 {[%emt 0:00:04]} 46. Bc6 {[%emt 0:00:01]} Ne6 {[%emt 0:00:05]} 47. f4 {[%emt 0:00:09]} Kf6 {[%emt 0:00:06]} 48. Ne3 {[%emt 0:00:05] Strongly threatening Nd5+.} Bc5 {[%emt 0:00:10]} 49. Nd5+ {[%emt 0:00:04]} Kg7 {[%emt 0:00:03]} 50. Bb5 {[%emt 0:00:05]} Nd4 {[%emt 0:00:02]} 51. Bd3 {[%emt 0:00:07]} Ba3 {[%emt 0:00:09]} 52. Nb6 {[%emt 0:00:06]} Bc5 {[%emt 0:00:03]} 53. Nc4 {[%emt 0:00:02]} Bb4 {[%emt 0:00:00]} 54. Kf2 {[%emt 0:00:03]} Nb3 {[%emt 0:00:12]} 55. Ke3 {[%emt 0:00:07]} Bc5+ {[%emt 0:00:06]} 56. Kf3 {[%emt 0:00:08]} Bb4 {[%emt 0:00:00]} 57. Kg4 {[%emt 0:00:03]} Nc5 {[%emt 0:00:06][%csl LRa4,LRd3]} 58. Bc2 {[%emt 0:00:01]} Ne6 {[%emt 0:00:00]} 59. Ne5 {[%emt 0:00:11]} Nd4 {[%emt 0:00:02]} 60. Bd3 {[%emt 0:00:02]} Be1 {[%emt 0:00:04]} 61. Nc4 {[%emt 0:00:06]} Ne6 {[%emt 0:00:05]} 62. Kh3 {[%emt 0:00:07]} Nc5 {[%emt 0:00:13]} 63. Bc2 {[%emt 0:00:02]} Ne6 {[%emt 0:00:01]} 64. Be4 {[%emt 0:00:08]} Nc5 {[%emt 0:00:03][%csl LRa4,LRe4]} 65. Bc6 {[%emt 0:00:02]} Ne6 {[%emt 0:00:08]} 66. Nd6 {[%emt 0:00:04]} Nd4 {[%emt 0:00:03]} 67. Bd7 {[%emt 0:00:07]} Ne2 {[%emt 0:00:03]} 68. Ne4 {[%emt 0:00:07]} Nc3 {[%emt 0:00:06]} 69. Nd6 {[%emt 0:00:05]} Ne2 $1 {[%emt 0:00:01]} 70. Nf5+ {[%emt 0:00:06]} Kg6 {[%emt 0:00:04]} 71. Nh4+ {[%emt 0:00:02]} Kf6 {[%emt 0:00:02]} 72. Nf5 {[%emt 0:00:08]} (72. Nf3 $16 Bc3 73. Kg4) 72... Nc3 {[%emt 0:00:22]} (72... Kg6 $11 {remains equal.}) 73. Nxh6 {[%emt 0:00:04]} ({White should play} 73. Kg4 $16) 73... Ne4 {[%emt 0:00:03]} (73... Ke7 $1 $11 74. Bc8 Nxa4) 74. Ng4+ {[%emt 0:00:06]} (74. g4 $16) 74... Ke7 $14 {[%emt 0:00:01]} 75. Bc6 {[%emt 0:00:02]} Nxg3 {[%emt 0:00:03]} 76. Ne5 {[%emt 0:00:05] Nf3 would be deadly.} Nf5 {[%emt 0:00:11]} 77. Kg4 {[%emt 0:00:06]} Nd4 {[%emt 0:00:05]} 78. Be4 {[%emt 0:00:01]} Bc3 {[%emt 0:00:04]} 79. Nc4 {[%emt 0:00:06]} Ne6 {[%emt 0:00:04]} 80. Ne3 {[%emt 0:00:07] Black must now prevent Nd5+.} Kd6 {[%emt 0:00:06]} 81. f5 {[%emt 0:00:06]} Nc5 {[%emt 0:00:02][%csl LRa4,LRe4]} 82. Bc2 {[%emt 0:00:01]} Nd7 {[%emt 0:00:01]} 83. Kh5 {[%emt 0:00:06]} Nf6+ {[%emt 0:00:16]} 84. Kg6 {[%emt 0:00:01]} Nd7 {[%emt 0:00:02]} 85. Bd1 {[%emt 0:00:13]} Ne5+ {[%emt 0:00:07]} 86. Kh7 {[%emt 0:00:01] f6 is the strong threat.} Nd7 {[%emt 0:00:03]} (86... Bd4 $5 {[%cal Rd4e3]} 87. Ng4 Nd7 $11) 87. Kg8 {[%emt 0:00:04]} Ke7 $2 {[%emt 0:00:09][%mdl 8192]} (87... Ke5 $11) 88. Nd5+ {[%emt 0:00:02]} Kd6 {[%emt 0:00:04]} 89. Nxc3 {[%emt 0:00:00] Weighted Error Value: White=0.09 (flawless) /Black=0.13 (very precise)} 1-0

[Event "Romanian GP Final KO 2023"]
[Site "Alba Iulia"]
[Date "2023.12.05"]
[Round "2.2"]
[White "Chigaev, Maksim"]
[Black "Gavrilescu, David"]
[Result "1/2-1/2"]
[ECO "E17"]
[WhiteElo "2626"]
[BlackElo "2534"]
[Annotator "TA"]
[PlyCount "38"]
[EventDate "2023.12.04"]
[EventType "k.o."]
[EventCountry "ROU"]
[SourceTitle "playchess.com"]
[Source "ChessBase"]
[SourceQuality "1"]
[TimeControl "900+5"]

{[%evp 21,23,34,27,18]} 1. c4 {[%emt 0:00:04]} e6 {[%emt 0:00:03]} 2. g3 {[%emt 0:00:02]} d5 {[%emt 0:00:02]} 3. Bg2 {[%emt 0:00:01]} Nf6 {[%emt 0:00:01]} 4. Nf3 {[%emt 0:00:02]} Be7 {[%emt 0:00:02]} 5. O-O {[%emt 0:00:15]} O-O {[%emt 0:00:03]} 6. b3 {[%emt 0:01:07]} b6 {[%emt 0:00:05]} 7. Bb2 {[%emt 0:00:17]} Bb7 {[%emt 0:00:02]} 8. d4 {[%emt 0:00:02]} c5 {[%emt 0:02:40]} 9. cxd5 {[%emt 0:04:37]} Bxd5 {[%emt 0:00:15]} 10. dxc5 {[%emt 0:00:24]} Bxc5 {[%emt 0:00:14]} 11. Nc3 {[%emt 0:00:30]} Bb7 {[%emt 0:00:03]} 12. Qxd8 {[%emt 0:01:32] [#] Not much happened in this game.  E17: Queen's Indian: 4 g3 Bb7 5 Bg2 Be7.} {Predecessor:} Rxd8 $146 13. Rfd1 Nbd7 14. Nd4 Bxg2 15. Kxg2 Rac8 16. Ndb5 a6 17. Nd6 Rc6 18. Nb7 Rdc8 19. Nxc5 Nxc5 {0-1 Neiksans,A (2584)-Schroeder,J (2552) Bundesliga 1718 2017 (13.7)} 1/2-1/2

[Event "Romanian GP Final KO 2023"]
[Site "Alba Iulia"]
[Date "2023.12.05"]
[Round "2.2"]
[White "Lupulescu, Constantin"]
[Black "Ciolacu, Alessia-Mihaela"]
[Result "1-0"]
[ECO "B51"]
[WhiteElo "2581"]
[BlackElo "2175"]
[Annotator "TA"]
[PlyCount "47"]
[EventDate "2023.12.04"]
[EventType "k.o."]
[EventCountry "ROU"]
[SourceTitle "playchess.com"]
[Source "ChessBase"]
[SourceQuality "1"]
[TimeControl "900+5"]

{[%evp 9,47,20,14,17,21,14,10,0,47,42,40,31,66,69,119,119,119,119,117,114,128,132,232,197,280,259,272,280,263,226,426,408,483,327,915,908,874,871,852,785]} 1. e4 {[%emt 0:00:01]} c5 {[%emt 0:00:02]} 2. Nf3 {[%emt 0:00:03]} d6 {[%emt 0:00:01]} 3. Bb5+ {[%emt 0:00:11]} Nd7 {[%emt 0:00:02]} 4. c3 {[%emt 0:00:12]} Ngf6 {[%emt 0:00:09]} 5. Bd3 {[%emt 0:00:08]} a6 {[%emt 0:00:32]} 6. Bc2 {[%emt 0:00:20] B51: Sicilian: Moscow Variation (3 Bb5+) without 3...Bd7.} b5 {[%emt 0:02:15]} 7. d4 {[%emt 0:00:15]} Bb7 {[%emt 0:00:22]} 8. d5 $5 {[%emt 0:00:50][%mdl 4] [#] The position is equal. Leaves trodden paths.} e5 $146 {[%emt 0:00:15]} (8... g6 $11) ({Predecessor:} 8... g6 9. O-O Bg7 10. h3 O-O 11. Re1 Re8 12. Bf4 Qc7 13. a4 e5 14. Bg5 h6 {0-1 Hansen,E (2606)-Firouzja,A (2723) Titled Tuesday intern op 7th Januar blitz 2020 (8)}) 9. dxe6 {[%emt 0:00:48]} fxe6 {[%emt 0:00:03]} 10. Qe2 {[%emt 0:00:55]} Qb6 {[%emt 0:07:25]} 11. Ng5 {[%emt 0:01:24]} d5 {[%emt 0:02:38]} ({Black should try} 11... e5 $14) 12. e5 $16 {[%emt 0:00:53] White is more active.} Ne4 {[%emt 0:00:38]} 13. Nxe4 {[%emt 0:00:39]} dxe4 {[%emt 0:00:01]} 14. Bxe4 {[%emt 0:00:05]} c4 {[%emt 0:01:37]} 15. O-O {[%emt 0:03:05]} O-O-O {[%emt 0:00:13]} (15... Bxe4 $16 16. Qxe4 Rc8) 16. a4 {[%emt 0:00:39]} Nc5 {[%emt 0:00:05]} (16... Bxe4 $142 17. Qxe4 Qb7) 17. Bxb7+ $18 {[%emt 0:00:16]} Qxb7 {[%emt 0:00:02]} 18. axb5 {[%emt 0:00:07]} axb5 {[%emt 0:00:04]} 19. Be3 {[%emt 0:00:14] [#] Nd2 is the strong threat.} Rd5 {[%emt 0:00:09]} (19... Nb3) 20. Nd2 {[%emt 0:01:11]} Be7 {[%emt 0:00:05]} 21. Qg4 {[%emt 0:00:16] Strongly threatening b4.} Rxe5 $2 {[%emt 0:00:05]} (21... h5 22. Qg6 Rhd8) 22. Qxg7 {[%emt 0:00:28] White is clearly winning.} Bf6 {[%emt 0:00:02]} 23. Qxf6 {[%emt 0:00:19]} Rg8 {[%emt 0:00:01]} 24. Qf3 {[%emt 0:00:12] Black did not feel at home in the position after the opening.   Weighted Error Value: White=0.18 (very precise) /Black=0.55} (24. Qxe5 $2 Qxg2#) 1-0